bitfinex/quotes_ETHUSD_20241116
["timestamp","ask_amount","ask_price","bid_price","bid_amount"]
[1731726353990,0.0830988,3113.4,3113.3,0.00321476]
[1731726354191,3.21182,3113.5,3113.3,0.00321476]
[1731726354369,0.08308783,3113.4,3113.3,0.00321476]
[1731726354569,3.21172,3113.6,3113.3,0.00321476]
[1731726354766,0.08313881,3113.5,3113.4,0.7761]
[1731726355609,3.21141,3113.9,3113.4,1.41433878]
[1731726355811,3.21141,3113.9,3113.5,0.2391073]
[1731726356120,3.21141,3113.9,3113.4,1.17523148]
[1731726356121,0.08329745,3113.8,3113.4,1.17523148]
[1731726356265,0.08329745,3113.8,3113.5,0.68454271]
[1731726356466,0.08329745,3113.8,3113.5,0.44546783]
[1731726358499,0.08329745,3113.8,3113.6,0.23918157]
[1731726358694,0.08329745,3113.8,3113.5,0.44546783]
[1731726358968,3.21181,3113.5,3112.9,0.7761]
[1731726359194,3.29510453,3113.4,3113.0,0.23923375]
[1731726359372,3.21205,3113.3,3113.1,0.23923375]
[1731726359574,0.08300257,3113.2,3112.9,0.7761]
[1731726359773,3.21205,3113.3,3113.0,0.23929677]
[1731726359970,0.08300257,3113.2,3113.1,0.23929677]
[1731726360281,0.08300257,3113.2,3113.0,0.23929677]
[1731726360282,3.21212,3113.2,3113.0,0.23929677]
[1731726360522,3.29512257,3113.2,3113.1,0.23929677]
[1731726360677,3.29512257,3113.2,3112.9,0.7761]
[1731726360878,3.21223,3113.1,3113.0,0.23930391]
[1731726361104,0.08295159,3113.1,3113.0,0.24251867]
[1731726363748,3.29518159,3113.1,3113.0,0.24251867]
[1731726367247,4.76630475,3113.1,3113.0,0.00321476]
[1731726373165,4.11558159,3113.1,3113.0,0.00321476]
[1731726375779,0.08295159,3113.1,3113.0,0.78621476]
[1731726376676,0.08290336,3113.1,3113.0,0.78621476]
[1731726376869,3.2121,3113.3,3113.0,0.78621476]
[1731726377087,0.08290716,3113.1,3113.0,0.78621476]
[1731726377375,3.2121,3113.3,3113.0,1.02506233]
[1731726377556,0.08290716,3113.1,3113.0,0.78621476]
[1731726377869,3.2121,3113.3,3113.0,1.02508095]
[1731726378086,0.08290716,3113.1,3113.0,0.78621476]
[1731726378327,3.2121,3113.3,3113.0,1.02505166]
[1731726378494,0.08290716,3113.1,3113.0,1.02504574]
[1731726378822,3.2121,3113.3,3113.0,1.02504783]
[1731726379119,3.2121,3113.3,3113.0,0.78621476]
[1731726379429,0.08295814,3113.2,3113.0,0.78621476]
[1731726379982,3.21217,3113.2,3113.0,0.78621476]
[1731726380190,0.08290716,3113.1,3113.0,0.78621476]
[1731726380389,0.08290716,3113.1,3113.0,1.02497492]
[1731726380927,3.29513716,3113.1,3113.0,0.00321476]
[1731726381096,4.72276088,3113.1,3113.0,0.00321476]
[1731726381725,4.07203716,3113.1,3113.0,0.00321476]
[1731726383642,3.29513716,3113.1,3113.0,0.00321476]
[1731726386047,0.08290716,3113.1,3113.0,0.00321476]
[1731726386752,3.21182,3113.5,3113.0,0.00321476]
[1731726386753,3.21198,3113.4,3113.0,0.78041476]
[1731726386925,0.08291196,3113.1,3113.0,0.78041476]
[1731726387254,3.21198,3113.4,3113.0,1.17970924]
[1731726387407,0.08291674,3113.1,3113.0,1.17970924]
[1731726387611,3.21198,3113.4,3113.0,1.17970924]
[1731726388010,0.0830187,3113.3,3113.0,1.17970924]
[1731726388213,0.0830187,3113.3,3113.1,0.43921392]
[1731726388553,0.08298586,3113.2,3113.1,0.44242868]
[1731726388752,3.21172,3113.6,3113.1,0.44242868]
[1731726388930,0.08298586,3113.2,3113.1,0.44242868]
[1731726389259,3.21194,3113.4,3113.1,0.44242868]
[1731726389471,0.08298634,3113.2,3113.1,0.44242868]
[1731726389640,3.29510634,3113.2,3113.1,0.00321476]
[1731726389841,3.21212,3113.2,3113.1,0.00321476]
[1731726390059,3.29511254,3113.2,3113.1,0.00321476]
[1731726393777,0.08299254,3113.2,3113.1,0.00321476]
[1731726394268,3.21183,3113.5,3113.2,0.7949]
[1731726394765,3.21183,3113.5,3113.2,0.79811476]
[1731726399680,3.21193,3113.4,3113.2,0.79811476]
[1731726400095,3.29499872,3113.4,3113.2,0.79811476]
[1731726403145,0.08306872,3113.4,3113.2,0.79811476]
[1731726406398,3.21202,3113.3,3113.2,0.79811476]
[1731726406802,3.29503775,3113.3,3113.2,0.00321476]
[1731726410270,0.08301775,3113.3,3113.2,0.00321476]
[1731726410496,0.08301775,3113.3,3113.2,0.77861476]
[1731726410669,3.21193,3113.4,3113.2,0.77861476]
[1731726411007,0.0830445,3113.3,3113.2,0.77861476]
[1731726412662,3.21192,3113.4,3113.2,0.77861476]
[1731726412904,0.08304593,3113.3,3113.2,0.77861476]
[1731726413212,6.42375,3113.5,3113.2,0.77861476]
[1731726413409,0.08304593,3113.3,3113.2,0.77861476]
[1731726413703,3.21164,3113.7,3113.2,0.77861476]
[1731726413911,0.08304593,3113.3,3113.2,0.77861476]
[1731726414084,0.08304593,3113.3,3113.2,1.18412651]
[1731726414423,0.08304737,3113.3,3113.2,1.18412651]
[1731726414584,3.21168,3113.7,3113.2,1.18412651]
[1731726414908,0.08304737,3113.3,3113.2,1.18412651]
[1731726415066,3.21168,3113.7,3113.2,1.18412651]
[1731726415270,0.08320029,3113.6,3113.2,1.18412651]
[1731726416411,0.08320029,3113.6,3113.3,0.06423827]
[1731726416722,0.08320029,3113.6,3113.4,0.44604148]
[1731726417015,3.21144,3113.9,3113.4,0.44604148]
[1731726417167,0.08316126,3113.5,3113.4,0.44604148]
[1731726417370,3.21144,3113.9,3113.4,0.44604148]
[1731726417571,0.08316126,3113.5,3113.4,0.44604148]
[1731726417816,3.21144,3113.9,3113.4,0.44604148]
[1731726418107,0.08316363,3113.5,3113.4,0.44604148]
[1731726418313,3.21144,3113.9,3113.4,0.44604148]
[1731726418618,0.08316363,3113.5,3113.4,0.44604148]
[1731726419107,0.08316363,3113.5,3113.4,0.44925624]
[1731726419285,3.21151,3113.8,3113.4,0.44925624]
[1731726419492,0.08316363,3113.5,3113.4,0.44925624]
[1731726419697,3.21151,3113.8,3113.4,0.44925624]
[1731726420206,0.08326987,3113.7,3113.4,0.44925624]
[1731726420584,3.21151,3113.8,3113.4,0.44925624]
[1731726420919,0.0832189,3113.6,3113.4,0.44925624]
[1731726421139,3.21141,3113.9,3113.5,0.8073]
[1731726421428,3.21141,3113.9,3113.5,1.25415762]
[1731726421982,3.2112,3114.1,3113.5,4.53020017]
[1731726422409,6.42207,3114.3,3113.7,0.8073]
[1731726422725,3.21123,3114.1,3113.8,0.701901]
[1731726422884,3.21123,3114.1,3113.7,0.81051476]
[1731726423084,3.21123,3114.1,3113.8,0.00321476]
[1731726424008,3.2114,3113.9,3113.8,0.00321476]
[1731726424207,4.89359522,3113.9,3113.8,0.00321476]
[1731726424801,3.2114,3113.9,3113.8,0.00321476]
[1731726425511,3.21123,3114.1,3113.8,0.00321476]
[1731726425702,3.21131,3114.0,3113.8,0.00321476]
[1731726426096,3.21131,3114.0,3113.8,0.80581476]
[1731726427734,0.08337754,3113.9,3113.8,0.80581476]
[1731726427892,3.2112,3114.1,3113.8,0.80581476]
[1731726428094,0.080685,3114.0,3113.8,0.80581476]
[1731726428604,3.21132,3114.0,3113.8,0.80581476]
[1731726428931,0.08063404,3113.9,3113.8,0.80581476]
[1731726433209,3.29203404,3113.9,3113.8,0.80581476]
[1731726433613,0.08063404,3113.9,3113.8,0.80581476]
[1731726434407,5.73205159,3113.9,3113.8,0.00321476]
[1731726434832,4.39562944,3113.9,3113.8,0.00321476]
[1731726436836,5.73205159,3113.9,3113.8,0.00321476]
[1731726437234,8.73205159,3113.9,3113.8,0.00321476]
[1731726441473,4.06643404,3113.9,3113.8,0.00321476]
[1731726441940,3.29203404,3113.9,3113.8,0.00321476]
[1731726443185,0.08063404,3113.9,3113.8,0.81591476]
[1731726443603,3.21121,3114.1,3113.8,0.81591476]
[1731726443777,0.0806783,3114.0,3113.8,0.81591476]
[1731726445661,3.21112,3114.2,3113.8,0.81591476]
[1731726445865,0.08065459,3113.9,3113.8,0.81591476]
[1731726446190,3.21127,3114.1,3113.8,1.21867424]
[1731726446390,0.08070746,3114.0,3113.8,0.81591476]
[1731726447781,0.08070746,3114.0,3113.9,0.23862862]
[1731726448314,3.21099,3114.3,3113.9,0.23862862]
[1731726448503,0.08070794,3114.0,3113.9,3.2114]
[1731726448710,3.21076,3114.6,3114.1,0.7511]
[1731726449208,4.0002,3115.1,3114.2,3.21109]
[1731726449375,4.0002,3115.1,3114.3,1.07253048]
[1731726449598,3.21036,3115.0,3114.4,0.23871304]
[1731726449777,3.21036,3115.0,3114.3,4.28349048]
[1731726449972,3.2102,3115.1,3114.4,0.99444107]
[1731726449973,3.21038,3114.9,3114.4,0.99444107]
[1731726450176,3.21038,3114.9,3114.4,0.7558802]
[1731726450889,3.21038,3114.9,3114.4,0.8019]
[1731726451308,6.42043,3115.1,3114.5,0.2384154]
[1731726451629,3.2102,3115.1,3114.4,4.01277]
[1731726451920,3.2102,3115.1,3114.3,3.21092]
[1731726451921,3.20997,3115.3,3114.7,0.8019]
[1731726452102,3.20997,3115.3,3114.8,0.401257]
[1731726452886,1.33642215,3115.4,3114.7,0.8019]
[1731726453086,3.21022,3115.1,3114.8,0.00321476]
[1731726453376,3.20996,3115.3,3114.8,0.00321476]
[1731726453697,3.21037,3114.9,3114.8,0.00321476]
[1731726456025,3.96367,3114.9,3114.8,0.00321476]
[1731726456625,3.21037,3114.9,3114.8,0.00321476]
[1731726457535,3.2882691,3114.9,3114.8,0.00321476]
[1731726458134,3.28024265,3114.9,3114.8,0.00321476]
[1731726458908,5.00361691,3114.9,3114.8,0.00321476]
[1731726459420,4.03354265,3114.9,3114.8,0.00321476]
[1731726459632,3.28024265,3114.9,3114.8,0.00321476]
[1731726460717,0.0778991,3114.9,3114.8,0.00321476]
[1731726461234,3.21025,3115.1,3114.8,0.00321476]
[1731726461411,0.07787132,3114.9,3114.8,0.00321476]
[1731726461611,3.21037,3114.9,3114.8,0.00321476]
[1731726461811,3.28824132,3114.9,3114.8,0.00321476]
[1731726462723,4.04154132,3114.9,3114.8,0.00321476]
[1731726464854,3.28824132,3114.9,3114.8,0.00321476]
[1731726466436,0.07787132,3114.9,3114.8,0.00321476]
[1731726466636,3.20997,3115.3,3114.8,0.80551476]
[1731726467255,0.07547683,3115.2,3114.8,0.80551476]
[1731726467416,0.07547683,3115.2,3114.8,4.01596476]
[1731726467616,3.20979,3115.5,3115.0,0.8023]
[1731726467834,0.07542639,3115.1,3115.0,0.80551476]
[1731726468011,3.20979,3115.5,3115.0,0.80551476]
[1731726468239,0.0754361,3115.1,3115.0,0.80551476]
[1731726468426,3.20979,3115.5,3115.0,1.21351526]
[1731726468715,3.20979,3115.5,3115.0,1.40351526]
[1731726469031,0.07558885,3115.4,3115.0,1.40351526]
[1731726470715,0.07558885,3115.4,3115.0,1.21351526]
[1731726471861,3.20973,3115.6,3115.0,1.21351526]
[1731726472164,3.20973,3115.6,3115.1,0.44880055]
[1731726472373,0.07566453,3115.5,3115.2,0.825]
[1731726472525,3.20955,3115.7,3115.2,0.825]
[1731726472730,0.07572805,3115.6,3115.2,0.825]
[1731726473132,0.07572805,3115.6,3115.3,0.44871753]
[1731726473382,3.20945,3115.8,3115.3,0.44871753]
[1731726473575,0.07567715,3115.5,3115.3,0.44871753]
[1731726473746,3.20945,3115.8,3115.3,0.44871753]
[1731726473947,3.20945,3115.8,3115.4,0.45511873]
[1731726474147,3.20955,3115.7,3115.4,0.45511873]
[1731726474359,3.20955,3115.7,3115.4,0.00321476]
[1731726474947,3.20934,3115.9,3115.4,0.00321476]
[1731726475151,3.20948,3115.8,3115.5,0.7938]
[1731726475671,3.20934,3115.9,3115.5,0.7938]
[1731726480080,3.20934,3115.9,3115.5,0.9838]
[1731726481311,3.20927,3116.0,3115.5,0.9838]
[1731726481499,3.20913,3116.1,3115.5,0.9838]
[1731726482166,3.20925,3116.0,3115.5,0.9838]
[1731726482373,3.20925,3116.0,3115.6,0.41967948]
[1731726482851,3.20903,3116.2,3115.6,0.41967948]
[1731726483056,3.20925,3116.0,3115.7,0.766]
[1731726483685,3.20782835,3116.0,3115.7,0.76921476]
[1731726484780,3.20906,3116.2,3115.7,0.76921476]
[1731726485170,3.20914,3116.1,3115.7,0.76921476]
[1731726485464,3.20906,3116.2,3115.7,0.76921476]
[1731726485690,3.20917,3116.1,3115.7,0.76921476]
[1731726486204,3.20917,3116.1,3115.7,0.86921476]
[1731726486403,3.20906,3116.2,3115.7,0.86921476]
[1731726487009,3.20906,3116.2,3115.8,0.40788548]
[1731726487243,3.20906,3116.2,3115.8,0.50788548]
[1731726487433,3.20906,3116.2,3115.8,0.51110024]
[1731726487713,0.07600437,3116.1,3115.8,0.51110024]
[1731726488405,0.07600437,3116.1,3116.0,3.98004]
[1731726488610,3.20864,3116.6,3116.0,3.98004]
[1731726488785,0.07098214,3116.1,3116.0,4.08004]
[1731726488986,3.20864,3116.6,3116.0,4.08004]
[1731726489194,0.07098214,3116.1,3116.0,0.87401476]
[1731726489390,3.20873,3116.5,3116.0,1.72219619]
[1731726489602,0.07098214,3116.1,3116.0,1.72219619]
[1731726489805,3.20864,3116.6,3116.0,1.72219619]
[1731726490016,0.07098214,3116.1,3116.0,4.93143619]
[1731726490198,3.20864,3116.6,3116.0,4.93143619]
[1731726490511,3.20864,3116.6,3116.2,0.8102]
[1731726490674,3.20864,3116.6,3116.2,0.81341476]
[1731726491415,6.41693,3116.8,3116.2,0.81341476]
[1731726491610,3.20843,3116.8,3116.2,0.81341476]
[1731726491909,3.20865,3116.6,3116.2,0.81341476]
[1731726492110,3.20873,3116.5,3116.2,0.81341476]
[1731726492509,4.03883,3116.3,3116.2,0.00321476]
[1731726493819,3.20893,3116.3,3116.2,0.00321476]
[1731726496025,3.20893,3116.3,3116.2,0.81341476]
[1731726496515,3.20881,3116.5,3116.2,0.81341476]
[1731726496722,3.20854,3116.7,3116.2,0.81341476]
[1731726497081,3.2081,3117.2,3116.5,0.8102]
[1731726497291,3.20783,3117.4,3116.7,4.01864]
[1731726497491,3.20791,3117.3,3116.8,0.401864]
[1731726498626,3.20791,3117.3,3116.9,0.8102]
[1731726500116,0.8299,3117.7,3116.9,0.8102]
[1731726500117,3.20821,3117.0,3116.9,0.8102]
[1731726500322,3.20831,3116.9,3116.8,0.00321476]
[1731726502733,3.27738263,3116.9,3116.8,0.00321476]
[1731726503035,4.00893189,3116.9,3116.8,0.00321476]
[1731726504299,4.82483189,3116.9,3116.8,0.00321476]
[1731726505139,4.09328263,3116.9,3116.8,0.00321476]
[1731726505345,0.06907263,3116.9,3116.8,0.00321476]
[1731726505492,3.27738263,3116.9,3116.8,0.00321476]
[1731726506425,3.27738263,3116.9,3116.6,0.73961644]
[1731726508748,3.27738263,3116.9,3116.6,0.7428312]
[1731726509338,0.06907263,3116.9,3116.6,0.7428312]
[1731726509841,0.06444126,3116.8,3116.6,0.7428312]
[1731726510049,3.20821,3117.0,3116.6,0.7428312]
[1731726510342,0.06439039,3116.7,3116.6,1.14441327]
[1731726510509,3.20821,3117.0,3116.6,1.14441327]
[1731726510706,0.06439039,3116.7,3116.6,1.14441327]
[1731726510911,3.20821,3117.0,3116.6,1.14441327]
[1731726511127,0.06440466,3116.7,3116.6,1.14441327]
[1731726511332,3.20783,3117.4,3116.7,3.20844]
[1731726511535,3.2079,3117.3,3116.7,4.29464]
[1731726511851,3.20777,3117.5,3116.8,4.25246825]
[1731726512065,3.20782,3117.4,3116.9,0.23785825]
[1731726512212,3.20782,3117.4,3117.0,0.50095297]
[1731726512543,3.20782,3117.4,3117.0,0.50416773]
[1731726512906,3.20782,3117.4,3117.0,0.78416773]
[1731726513807,3.20761,3117.6,3117.0,0.78416773]
[1731726514144,3.20761,3117.6,3117.1,0.8062]
[1731726514440,3.2077,3117.5,3117.1,0.80941476]
[1731726515522,3.20781,3117.4,3117.1,0.80941476]
[1731726516643,3.20761,3117.6,3117.1,0.80941476]
[1731726516845,3.20761,3117.6,3117.2,0.42976148]
[1731726517359,3.20759,3117.6,3117.2,0.00321476]
[1731726517555,3.20783,3117.4,3117.2,0.00321476]
[1731726517950,0.06473148,3117.3,3117.2,0.00321476]
[1731726518160,3.27263148,3117.3,3117.2,0.00321476]
[1731726518515,0.06473148,3117.3,3117.2,0.00321476]
[1731726522126,3.20761,3117.6,3117.2,0.00321476]
[1731726522324,0.06473148,3117.3,3117.2,0.00321476]
[1731726522529,3.2077,3117.5,3117.2,0.00321476]
[1731726522766,0.06473148,3117.3,3117.2,0.00321476]
[1731726524061,3.20761,3117.6,3117.2,0.00321476]
[1731726524224,0.06473148,3117.3,3117.2,0.00321476]
[1731726524423,3.20761,3117.6,3117.2,0.00321476]
[1731726524645,0.06473148,3117.3,3117.2,0.00321476]
[1731726524856,3.20761,3117.6,3117.2,0.00321476]
[1731726524857,3.20761,3117.6,3117.2,0.40497424]
[1731726525169,0.06473148,3117.3,3117.2,0.40497424]
[1731726525361,3.20761,3117.6,3117.2,0.40497424]
[1731726525571,0.06473148,3117.3,3117.2,0.40497424]
[1731726525769,3.20761,3117.6,3117.2,0.40497424]
[1731726525977,0.06473148,3117.3,3117.2,0.40497424]
[1731726526147,3.20761,3117.6,3117.2,0.6427251]
[1731726526348,0.06477771,3117.3,3117.2,0.40497424]
[1731726526549,3.2077,3117.5,3117.2,0.64279903]
[1731726526746,3.2077,3117.5,3117.2,0.40497424]
[1731726526747,0.06477771,3117.3,3117.2,0.40497424]
[1731726527255,3.2077,3117.5,3117.2,0.40497424]
[1731726527438,0.06477771,3117.3,3117.2,0.40497424]
[1731726527640,3.2077,3117.5,3117.2,0.24106352]
[1731726527841,0.06263645,3117.3,3117.2,0.00321476]
[1731726528037,4.08249,3117.7,3117.2,0.00321476]
[1731726528355,0.06263645,3117.3,3117.2,0.00321476]
[1731726528538,4.08249,3117.7,3117.2,0.40496624]
[1731726528734,0.06263645,3117.3,3117.2,0.40496624]
[1731726528958,4.08249,3117.7,3117.2,0.40496624]
[1731726529166,0.06263645,3117.3,3117.2,0.40496624]
[1731726529382,4.08249,3117.7,3117.2,0.40496624]
[1731726529676,4.08249,3117.7,3117.2,0.00321476]
[1731726529879,0.06278898,3117.6,3117.2,0.00321476]
[1731726530191,0.06278898,3117.6,3117.2,3.21121476]
[1731726530340,0.06278898,3117.6,3117.3,0.7959]
[1731726530676,0.06278898,3117.6,3117.3,0.79911476]
[1731726530882,0.06278898,3117.6,3117.4,0.40071148]
[1731726531973,0.06278898,3117.6,3117.5,4.00359]
[1731726532175,0.06278898,3117.6,3117.5,4.00680476]
[1731726532336,0.875,3117.7,3117.5,4.00680476]
[1731726532538,0.06062342,3117.6,3117.5,4.00680476]
[1731726533081,0.06063472,3117.6,3117.5,0.79911476]
[1731726533281,0.875,3117.7,3117.5,1.83758677]
[1731726533776,0.875,3117.7,3117.5,0.79911476]
[1731726533966,0.06063472,3117.6,3117.5,0.79911476]
[1731726538459,0.06063472,3117.6,3117.5,4.00680476]
[1731726538881,0.875,3117.7,3117.6,3.20759]
[1731726539083,0.875,3117.7,3117.6,7.00349]
[1731726539261,0.875,3117.7,3117.6,8.35645077]
[1731726539475,0.875,3117.7,3117.6,8.29552151]
[1731726540875,0.875,3117.7,3117.6,11.18121295]
[1731726545815,0.875,3117.7,3117.6,8.29552151]
[1731726545970,0.875,3117.7,3117.6,11.18121295]
[1731726546608,0.875,3117.7,3117.6,11.19121295]
[1731726548947,0.875,3117.7,3117.6,0.00321476]
[1731726549116,4.87059,3117.7,3117.6,0.00321476]
[1731726549747,4.93131441,3117.7,3117.6,0.00321476]
[1731726557326,4.93131441,3117.7,3117.6,9.8858962]
[1731726557327,0.93572441,3117.7,3117.6,9.8858962]
[1731726557647,0.7798,3118.4,3117.8,3.20738]
[1731726557648,3.98663,3118.4,3117.8,3.20738]
[1731726557859,0.05481366,3118.3,3117.8,3.20738]
[1731726558158,0.05481366,3118.3,3117.8,3.21059476]
[1731726558754,0.05481366,3118.3,3117.9,0.7894]
[1731726559447,0.05481366,3118.3,3117.9,3.99668]
[1731726559656,3.3519431,3118.5,3117.9,4.06082036]
[1731726559856,3.3519431,3118.5,3117.9,0.85354036]
[1731726559857,3.20677,3118.4,3117.9,0.85354036]
[1731726560025,3.26163448,3118.4,3117.9,0.85354036]
[1731726560355,0.05486448,3118.4,3117.9,0.85354036]
[1731726560554,0.05486448,3118.4,3117.9,1.50062501]
[1731726560710,0.05486448,3118.4,3118.0,0.47111498]
[1731726561155,0.05486448,3118.4,3118.0,0.47432974]
[1731726563934,0.05486448,3118.4,3118.0,0.00321476]
[1731726564132,0.1452531,3118.5,3118.0,3.21038476]
[1731726564327,0.05481366,3118.3,3118.0,3.21038476]
[1731726564559,0.05486448,3118.4,3118.0,3.21038476]
[1731726564873,0.1452531,3118.5,3118.1,0.46468694]
[1731726565235,0.05486448,3118.4,3118.1,0.4679017]
[1731726566985,0.05486448,3118.4,3118.1,3.6749517]
[1731726567175,0.05486448,3118.4,3118.2,3.20697]
[1731726567471,0.05486448,3118.4,3118.2,3.21018476]
[1731726567769,0.05486448,3118.4,3118.3,0.36748717]
[1731726568140,0.05486448,3118.4,3118.3,0.37070193]
[1731726568530,0.05486448,3118.4,3118.3,0.00321476]
[1731726570548,3.26163448,3118.4,3118.3,0.00321476]
[1731726570839,0.05486448,3118.4,3118.3,0.00321476]
[1731726578106,3.26163448,3118.4,3118.3,0.00321476]
[1731726578907,4.05483448,3118.4,3118.3,0.00321476]
[1731726579096,4.79549924,3118.4,3118.3,0.00321476]
[1731726579426,0.05486448,3118.4,3118.3,0.00321476]
[1731726580696,3.26163448,3118.4,3118.3,0.00321476]
[1731726584016,0.05486448,3118.4,3118.3,0.00321476]
[1731726585736,3.26163448,3118.4,3118.3,0.00321476]
[1731726585943,4.02043448,3118.4,3118.3,0.00321476]
[1731726587622,4.75766824,3118.4,3118.3,0.00321476]
[1731726590641,4.02043448,3118.4,3118.3,0.00321476]
[1731726590842,0.81366448,3118.4,3118.3,0.00321476]
[1731726591431,0.05486448,3118.4,3118.3,0.00321476]
[1731726591760,0.05486448,3118.4,3118.3,0.24095846]
[1731726594455,0.05486448,3118.4,3118.3,0.00321476]
[1731726594657,0.05486448,3118.4,3118.3,0.24089247]
[1731726596335,0.05486448,3118.4,3118.3,0.58668272]
[1731726597679,0.05486448,3118.4,3118.3,0.34900501]
[1731726597854,0.05486448,3118.4,3118.3,0.00321476]
[1731726598057,0.05486448,3118.4,3118.3,0.2407722]
[1731726600886,0.05486448,3118.4,3118.3,0.9958722]
[1731726601084,0.05486448,3118.4,3118.3,4.2027422]
[1731726602389,0.05486448,3118.4,3118.3,7.26687335]
[1731726602588,0.05486448,3118.4,3118.3,8.44941644]
[1731726602790,0.1452531,3118.5,3118.4,6.96187]
[1731726602975,0.1452531,3118.5,3118.4,8.2935475]
[1731726603285,0.1452531,3118.5,3118.4,8.53105307]
[1731726603495,0.1452531,3118.5,3118.4,9.90860359]
[1731726603842,0.1452531,3118.5,3118.4,10.14590898]
[1731726604360,0.1452531,3118.5,3118.4,10.15590898]
[1731726604562,0.1452531,3118.5,3118.4,10.16590898]
[1731726604895,0.1452531,3118.5,3118.4,10.43590898]
[1731726605770,0.1452531,3118.5,3118.4,10.43578951]
[1731726607080,0.1452531,3118.5,3118.4,10.43571471]
[1731726608165,0.1452531,3118.5,3118.4,6.51255506]
[1731726608373,0.1452531,3118.5,3118.4,1.26221112]
[1731726608591,0.19839172,3118.5,3118.4,1.26221112]
[1731726609565,0.19839172,3118.5,3118.4,0.50711112]
[1731726609808,3.40505172,3118.5,3118.4,0.50711112]
[1731726610171,3.40505172,3118.5,3118.4,0.27]
[1731726610872,3.40505172,3118.5,3118.3,0.00321476]
[1731726611505,0.19839172,3118.5,3118.3,0.00321476]
[1731726612195,0.19839172,3118.5,3118.3,0.06321476]
[1731726612696,3.20677,3118.4,3118.3,0.06321476]
[1731726613099,3.25985781,3118.4,3118.3,0.06321476]
[1731726613300,4.77637198,3118.4,3118.3,0.06321476]
[1731726613771,4.77637198,3118.4,3118.3,0.00321476]
[1731726614112,4.03725781,3118.4,3118.3,0.00321476]
[1731726616394,0.83048781,3118.4,3118.3,0.00321476]
[1731726616993,4.03725781,3118.4,3118.3,0.00321476]
[1731726617391,0.05308781,3118.4,3118.3,0.00321476]
[1731726618788,0.05308781,3118.4,3118.3,0.24051482]
[1731726618789,4.03725781,3118.4,3118.3,0.24051482]
[1731726618989,4.3777619,3118.4,3118.3,0.00321476]
[1731726621687,4.03725781,3118.4,3118.3,0.00321476]
[1731726632348,4.07008809,3118.4,3118.3,0.00321476]
[1731726638160,4.06208809,3118.4,3118.3,0.00321476]
[1731726639119,0.7985,3117.2,3116.4,0.8329]
[1731726639327,3.2084,3116.9,3116.5,0.23827483]
[1731726639664,0.08484412,3116.8,3116.6,0.23827483]
[1731726639817,0.08484412,3116.8,3116.7,0.23827483]
[1731726640018,3.20832,3116.9,3116.7,0.23827483]
[1731726640238,3.2086,3116.7,3116.5,0.4725926]
[1731726640439,3.2086,3116.7,3116.0,3.20922]
[1731726640657,0.08471548,3116.6,3116.0,3.85109]
[1731726640859,0.08471548,3116.6,3116.5,0.00321476]
[1731726641020,4.09183548,3116.6,3116.5,0.00321476]
[1731726641219,4.00712,3116.6,3116.5,0.00321476]
[1731726641544,4.09180548,3116.6,3116.5,0.00321476]
[1731726643057,4.82183003,3116.6,3116.5,0.00321476]
[1731726646859,8.38913003,3116.6,3116.5,0.00321476]
[1731726652844,4.10910548,3116.6,3116.5,0.00321476]
[1731726653045,0.08468548,3116.6,3116.5,0.00321476]
[1731726654065,3.29330548,3116.6,3116.5,0.00321476]
[1731726654373,3.28747998,3116.6,3116.5,0.00321476]
[1731726662560,0.07885998,3116.6,3116.5,0.00321476]
[1731726662874,3.20842,3116.8,3116.5,0.00321476]
[1731726663088,0.078873,3116.6,3116.5,0.00321476]
[1731726663398,3.20842,3116.8,3116.5,0.00321476]
[1731726663807,0.07894838,3116.7,3116.5,0.00321476]
[1731726663979,3.20842,3116.8,3116.5,0.00321476]
[1731726664181,0.07894838,3116.7,3116.5,0.00321476]
[1731726664365,3.20852,3116.7,3116.5,0.00321476]
[1731726664905,0.07889857,3116.6,3116.5,0.00321476]
[1731726666414,3.28751857,3116.6,3116.5,0.00321476]
[1731726666713,3.93712243,3116.6,3116.5,0.00321476]
[1731726666861,7.69332243,3116.6,3116.5,0.00321476]
[1731726667260,4.69332243,3116.6,3116.5,0.00321476]
[1731726670002,3.93712243,3116.6,3116.5,0.00321476]
[1731726674030,8.31152243,3116.6,3116.5,0.00321476]
[1731726675085,8.31152243,3116.6,3116.5,4.76e-06]
[1731726679328,6.93712243,3116.6,3116.5,4.76e-06]
[1731726679682,3.28751857,3116.6,3116.5,4.76e-06]
[1731726680124,3.28751857,3116.6,3116.5,0.75600476]
[1731726680286,0.07889857,3116.6,3116.5,0.75600476]
[1731726680700,3.20843,3116.8,3116.5,0.75600476]
[1731726681022,0.07892632,3116.7,3116.5,0.75600476]
[1731726681235,3.20843,3116.8,3116.5,0.75600476]
[1731726681383,0.07887651,3116.6,3116.5,0.75600476]
[1731726681591,3.20843,3116.8,3116.5,0.75600476]
[1731726681929,0.07892632,3116.7,3116.5,0.75600476]
[1731726682302,3.20843,3116.8,3116.5,0.75600476]
[1731726682498,0.07887651,3116.6,3116.5,0.75600476]
[1731726682711,3.20843,3116.8,3116.5,0.75600476]
[1731726682911,0.07887651,3116.6,3116.5,3.96463476]
[1731726683140,3.20787,3117.4,3116.8,0.756]
[1731726683499,3.20801,3117.2,3116.8,0.756]
[1731726683803,3.20739,3117.8,3117.2,0.756]
[1731726684003,3.2075,3117.7,3117.3,0.6853322]
[1731726684349,3.20746,3117.8,3117.2,0.756]
[1731726684647,3.20749,3117.7,3117.2,0.756]
[1731726684855,3.20749,3117.7,3117.3,0.396409]
[1731726685014,3.20729,3117.9,3117.3,0.396409]
[1731726685435,3.20729,3117.9,3117.4,0.7669]
[1731726686403,3.20709,3118.1,3117.4,0.7669]
[1731726686603,3.2069,3118.3,3117.5,0.44385454]
[1731726686804,3.20716,3118.1,3117.5,0.4470693]
[1731726687002,3.20731,3117.9,3117.5,0.4470693]
[1731726687202,3.20759,3117.6,3117.5,0.00321476]
[1731726694722,3.20741,3117.8,3117.5,0.79871476]
[1731726695954,3.20751,3117.7,3117.5,0.79871476]
[1731726697455,3.20731,3117.9,3117.5,0.79871476]
[1731726697662,3.28446764,3117.6,3117.5,0.79871476]
[1731726697873,3.20759,3117.6,3117.5,0.79871476]
[1731726698078,3.28446764,3117.6,3117.5,0.79871476]
[1731726701259,3.28446764,3117.6,3117.5,0.00321476]
[1731726703888,0.07687764,3117.6,3117.5,0.00321476]
[1731726704238,8.92,3118.4,3117.5,0.79871476]
[1731726704461,3.2072,3118.0,3117.5,1.20578373]
[1731726704776,3.2072,3118.0,3117.6,0.8255]
[1731726704933,0.07706975,3117.9,3117.6,0.8255]
[1731726705137,0.07706975,3117.9,3117.6,0.82871476]
[1731726705849,0.07706975,3117.9,3117.6,0.97871476]